[Event "Live Chess"]
[Site "Chess.com"]
[Date "2024.06.01"]
[Round "-"]
[White "Stanbad1"]
[Black "willc-h99"]
[Result "0-1"]
[WhiteElo "2664"]
[BlackElo "2621"]
[TimeControl "300"]
[EndTime "12:41:47 PDT"]
[Termination "willc-h99 won by resignation"]

1. d4 {[%clk 0:04:57.2]} 1... d6 {[%clk 0:04:53]} 2. Nc3 {[%clk 0:04:55.6]} 2...
g6 {[%clk 0:04:48.6]} 3. e4 {[%clk 0:04:55]} 3... Bg7 {[%clk 0:04:47.4]} 4. Be3
{[%clk 0:04:53.2]} 4... a6 {[%clk 0:04:46]} 5. f3 {[%clk 0:04:52.1]} 5... e6
{[%clk 0:04:40.7]} 6. Qd2 {[%clk 0:04:51.3]} 6... b6 {[%clk 0:04:36.7]} 7. Nh3
{[%clk 0:04:48.3]} 7... Bb7 {[%clk 0:04:34.8]} 8. Nf2 {[%clk 0:04:47.5]} 8...
Nd7 {[%clk 0:04:31.1]} 9. g3 {[%clk 0:04:46.2]} 9... h6 {[%clk 0:04:28.6]} 10.
Bg2 {[%clk 0:04:44.9]} 10... b5 {[%clk 0:04:19.6]} 11. O-O {[%clk 0:04:42.9]}
11... Ne7 {[%clk 0:04:11]} 12. Rad1 {[%clk 0:04:41]} 12... Nb6 {[%clk
0:04:02.9]} 13. b3 {[%clk 0:04:39.4]} 13... b4 {[%clk 0:03:57.5]} 14. Ne2 {[%clk
0:04:37.9]} 14... a5 {[%clk 0:03:56.7]} 15. Nd3 {[%clk 0:04:36.4]} 15... Qd7
{[%clk 0:03:45.1]} 16. c4 {[%clk 0:04:34.4]} 16... bxc3 {[%clk 0:03:42.8]} 17.
Nxc3 {[%clk 0:04:33.2]} 17... a4 {[%clk 0:03:22.7]} 18. Qc2 {[%clk 0:04:23]}
18... O-O {[%clk 0:03:16.8]} 19. Rb1 {[%clk 0:04:18.7]} 19... axb3 {[%clk
0:03:06.3]} 20. Rxb3 {[%clk 0:04:16.3]} 20... Ba6 {[%clk 0:03:01.3]} 21. Rfb1
{[%clk 0:04:13.3]} 21... Nc4 {[%clk 0:02:54.8]} 22. Bf2 {[%clk 0:04:11.4]} 22...
Nc6 {[%clk 0:02:45.6]} 23. Nb5 {[%clk 0:04:07.4]} 23... Bxb5 {[%clk 0:02:42.9]}
24. Rxb5 {[%clk 0:04:05]} 24... Na3 {[%clk 0:02:41.3]} 25. Qc3 {[%clk
0:03:47.9]} 25... Nxb5 {[%clk 0:02:36.9]} 26. Rxb5 {[%clk 0:03:47.8]} 26... Nxd4
{[%clk 0:02:34.1]} 27. Bxd4 {[%clk 0:03:46.1]} 27... Bxd4+ {[%clk 0:02:31]} 28.
Qxd4 {[%clk 0:03:46]} 28... Qxb5 {[%clk 0:02:28.8]} 29. e5 {[%clk 0:03:45.4]}
29... Qb6 {[%clk 0:02:21.1]} 30. Qxb6 {[%clk 0:03:31]} 30... cxb6 {[%clk
0:02:21]} 31. exd6 {[%clk 0:03:29.3]} 31... Rfd8 {[%clk 0:02:14.7]} 32. f4
{[%clk 0:03:27.1]} 32... Rxa2 {[%clk 0:02:13.4]} 0-1

[Event "Live Chess"]
[Site "Chess.com"]
[Date "2024.06.01"]
[Round "-"]
[White "PatientChessPapa"]
[Black "DarranAS"]
[Result "0-1"]
[WhiteElo "774"]
[BlackElo "1460"]
[TimeControl "300"]
[EndTime "12:41:54 PDT"]
[Termination "DarranAS won on time"]

1. e4 {[%clk 0:04:55.5]} 1... c5 {[%clk 0:04:58]} 2. c3 {[%clk 0:04:53.3]} 2...
Nc6 {[%clk 0:04:55.8]} 3. d4 {[%clk 0:04:50]} 3... cxd4 {[%clk 0:04:54.9]} 4.
cxd4 {[%clk 0:04:48.7]} 4... e6 {[%clk 0:04:45.7]} 5. d5 {[%clk 0:04:44]} 5...
exd5 {[%clk 0:04:40]} 6. exd5 {[%clk 0:04:42.9]} 6... Qe7+ {[%clk 0:04:28.3]} 7.
Be3 {[%clk 0:04:31.2]} 7... Ne5 {[%clk 0:04:22.4]} 8. d6 {[%clk 0:04:05.9]} 8...
Qxd6 {[%clk 0:04:17]} 9. Qxd6 {[%clk 0:04:00.9]} 9... Bxd6 {[%clk 0:04:15.2]}
10. Nc3 {[%clk 0:03:58.9]} 10... Nf6 {[%clk 0:04:10]} 11. O-O-O {[%clk
0:03:57.2]} 11... Bc7 {[%clk 0:03:45.8]} 12. Bb5 {[%clk 0:03:26.7]} 12... O-O
{[%clk 0:03:39.3]} 13. f4 {[%clk 0:03:20]} 13... Nc6 {[%clk 0:03:34.2]} 14. Nf3
{[%clk 0:03:12.1]} 14... a6 {[%clk 0:03:29.8]} 15. Ba4 {[%clk 0:02:46.9]} 15...
d6 {[%clk 0:03:24.9]} 16. Rhe1 {[%clk 0:02:37.6]} 16... Bg4 {[%clk 0:03:21.4]}
17. h3 {[%clk 0:02:30]} 17... Bxf3 {[%clk 0:03:18.4]} 18. gxf3 {[%clk
0:02:29.1]} 18... Rad8 {[%clk 0:02:59.9]} 19. Rg1 {[%clk 0:02:27.2]} 19... d5
{[%clk 0:02:48.7]} 20. f5 {[%clk 0:02:05.9]} 20... b5 {[%clk 0:02:44.5]} 21. Bh6
{[%clk 0:01:53.7]} 21... Ne8 {[%clk 0:02:00.7]} 22. Bc2 {[%clk 0:01:44.4]} 22...
Kh8 {[%clk 0:01:51.5]} 23. Be3 {[%clk 0:00:44]} 23... d4 {[%clk 0:01:35.8]} 24.
Bxd4 {[%clk 0:00:22]} 24... Nxd4 {[%clk 0:01:33.9]} 25. Rg3 {[%clk 0:00:09.3]}
25... Nxc2 {[%clk 0:01:30.2]} 26. Rdg1 {[%clk 0:00:07.6]} 26... Ne3 {[%clk
0:01:20]} 27. Rxg7 {[%clk 0:00:05.5]} 27... Nxg7 {[%clk 0:01:17.6]} 28. Rxg7
{[%clk 0:00:02.7]} 28... Kxg7 {[%clk 0:01:15.5]} 0-1

[Event "Live Chess"]
[Site "Chess.com"]
[Date "2024.06.01"]
[Round "-"]
[White "WelshTiger"]
[Black "Colm_Buckley"]
[Result "1-0"]
[WhiteElo "2543"]
[BlackElo "1860"]
[TimeControl "300"]
[EndTime "12:42:10 PDT"]
[Termination "WelshTiger won by resignation"]

1. e4 {[%clk 0:04:57.6]} 1... e6 {[%clk 0:04:59]} 2. d4 {[%clk 0:04:56.3]} 2...
d5 {[%clk 0:04:58.6]} 3. Nd2 {[%clk 0:04:55.8]} 3... c5 {[%clk 0:04:57.2]} 4.
exd5 {[%clk 0:04:54.7]} 4... exd5 {[%clk 0:04:55.6]} 5. Ngf3 {[%clk 0:04:53.2]}
5... Nc6 {[%clk 0:04:54.7]} 6. Bb5 {[%clk 0:04:52.2]} 6... Bd7 {[%clk
0:04:52.5]} 7. O-O {[%clk 0:04:50.1]} 7... a6 {[%clk 0:04:51.7]} 8. Bxc6 {[%clk
0:04:48.4]} 8... Bxc6 {[%clk 0:04:50]} 9. Re1+ {[%clk 0:04:47.2]} 9... Be7
{[%clk 0:04:48.7]} 10. dxc5 {[%clk 0:04:45.8]} 10... Nf6 {[%clk 0:04:44.6]} 11.
b4 {[%clk 0:04:38]} 11... O-O {[%clk 0:04:43.1]} 12. Bb2 {[%clk 0:04:37.1]}
12... a5 {[%clk 0:04:41.5]} 13. a3 {[%clk 0:04:34.7]} 13... axb4 {[%clk
0:04:40.4]} 14. axb4 {[%clk 0:04:33.6]} 14... Rxa1 {[%clk 0:04:39.2]} 15. Qxa1
{[%clk 0:04:32.2]} 15... b6 {[%clk 0:04:38.6]} 16. Nb3 {[%clk 0:04:22.9]} 16...
bxc5 {[%clk 0:04:33.5]} 17. bxc5 {[%clk 0:04:22.8]} 17... Ne4 {[%clk 0:04:27.6]}
18. Bxg7 {[%clk 0:04:19.7]} 18... Re8 {[%clk 0:04:17.2]} 19. Nbd4 {[%clk
0:04:09.2]} 19... Bxc5 {[%clk 0:04:00.6]} 20. Nxc6 {[%clk 0:03:57]} 20... Bxf2+
{[%clk 0:03:59.4]} 21. Kh1 {[%clk 0:03:56.5]} 21... Qd6 {[%clk 0:03:28.2]} 22.
Ncd4 {[%clk 0:03:49.5]} 22... Bxe1 {[%clk 0:03:18.2]} 23. Qxe1 {[%clk
0:03:47.7]} 23... Nf6 {[%clk 0:03:03.1]} 24. Qh4 {[%clk 0:03:41.3]} 24... Qa6
{[%clk 0:02:49.4]} 25. Bxf6 {[%clk 0:03:33.3]} 25... Qf1+ {[%clk 0:02:47.1]} 26.
Ng1 {[%clk 0:03:32.5]} 1-0

[Event "Live Chess"]
[Site "Chess.com"]
[Date "2024.06.01"]
[Round "-"]
[White "cymbalshift"]
[Black "uselessduffer"]
[Result "0-1"]
[WhiteElo "1704"]
[BlackElo "2429"]
[TimeControl "300"]
[EndTime "12:42:17 PDT"]
[Termination "uselessduffer won on time"]

1. d4 {[%clk 0:04:58]} 1... Nf6 {[%clk 0:04:58.6]} 2. Nc3 {[%clk 0:04:56.5]}
2... d5 {[%clk 0:04:56.6]} 3. e4 {[%clk 0:04:55]} 3... Nxe4 {[%clk 0:04:54.9]}
4. Nxe4 {[%clk 0:04:53.6]} 4... dxe4 {[%clk 0:04:54.8]} 5. Be3 {[%clk
0:04:52.1]} 5... Bf5 {[%clk 0:04:46.2]} 6. Bc4 {[%clk 0:04:48.9]} 6... e6 {[%clk
0:04:42.7]} 7. Ne2 {[%clk 0:04:47.5]} 7... Nd7 {[%clk 0:04:41.4]} 8. Ng3 {[%clk
0:04:45.7]} 8... Bg6 {[%clk 0:04:40.9]} 9. Qd2 {[%clk 0:04:44.1]} 9... Nf6
{[%clk 0:04:36]} 10. O-O-O {[%clk 0:04:36.3]} 10... Be7 {[%clk 0:04:33.8]} 11.
h4 {[%clk 0:04:34.5]} 11... h6 {[%clk 0:04:32]} 12. h5 {[%clk 0:04:29.5]} 12...
Bh7 {[%clk 0:04:31]} 13. Ne2 {[%clk 0:04:18.9]} 13... Nd5 {[%clk 0:04:24.7]} 14.
g4 {[%clk 0:04:10.4]} 14... Qd7 {[%clk 0:04:19.5]} 15. Rdg1 {[%clk 0:03:35.8]}
15... O-O-O {[%clk 0:04:08.4]} 16. Bb3 {[%clk 0:03:27.1]} 16... Kb8 {[%clk
0:03:59.2]} 17. a3 {[%clk 0:03:23.9]} 17... Qb5 {[%clk 0:03:03.8]} 18. Ba2
{[%clk 0:03:09.2]} 18... Nb6 {[%clk 0:02:48.5]} 19. Nc3 {[%clk 0:02:54.9]} 19...
Qc6 {[%clk 0:02:46.9]} 20. Qe2 {[%clk 0:02:37.9]} 20... Bf6 {[%clk 0:02:31.3]}
21. Rd1 {[%clk 0:02:20]} 21... Nd5 {[%clk 0:02:30]} 22. Qd2 {[%clk 0:01:55.4]}
22... Be7 {[%clk 0:01:59.6]} 23. Nxd5 {[%clk 0:01:39.9]} 23... exd5 {[%clk
0:01:59.5]} 24. Kb1 {[%clk 0:01:39]} 24... f5 {[%clk 0:01:53.8]} 25. Rc1 {[%clk
0:01:33.2]} 25... fxg4 {[%clk 0:01:42.1]} 26. c4 {[%clk 0:01:30]} 26... dxc4
{[%clk 0:01:37.9]} 27. Rxc4 {[%clk 0:01:25.9]} 27... Qd7 {[%clk 0:01:32.5]} 28.
Rhc1 {[%clk 0:01:11.7]} 28... Bd6 {[%clk 0:01:30.3]} 29. Qa5 {[%clk 0:00:39.2]}
29... b6 {[%clk 0:01:12.7]} 30. Qa6 {[%clk 0:00:17.4]} 30... Qc8 {[%clk
0:01:05.9]} 31. Qa4 {[%clk 0:00:15.4]} 31... Bg8 {[%clk 0:01:00.7]} 32. Rxc7
{[%clk 0:00:05.4]} 32... Bxa2+ {[%clk 0:00:56.6]} 33. Kxa2 {[%clk 0:00:05.3]}
33... Bxc7 {[%clk 0:00:55.5]} 0-1

[Event "Live Chess"]
[Site "Chess.com"]
[Date "2024.06.01"]
[Round "-"]
[White "nigelst"]
[Black "MaximKovalenko83"]
[Result "0-1"]
[WhiteElo "1651"]
[BlackElo "2252"]
[TimeControl "300"]
[EndTime "12:42:26 PDT"]
[Termination "MaximKovalenko83 won by resignation"]

1. e4 {[%clk 0:04:57.6]} 1... c6 {[%clk 0:04:58.6]} 2. d4 {[%clk 0:04:55.1]}
2... d5 {[%clk 0:04:58.5]} 3. exd5 {[%clk 0:04:54.1]} 3... cxd5 {[%clk
0:04:58.4]} 4. Bd3 {[%clk 0:04:52.9]} 4... Nc6 {[%clk 0:04:58]} 5. c3 {[%clk
0:04:51.9]} 5... Nf6 {[%clk 0:04:57.9]} 6. Bf4 {[%clk 0:04:50.7]} 6... Bg4
{[%clk 0:04:54.9]} 7. Qb3 {[%clk 0:04:48]} 7... Qc8 {[%clk 0:04:49.7]} 8. Nd2
{[%clk 0:04:45.2]} 8... e6 {[%clk 0:04:48.1]} 9. Ngf3 {[%clk 0:04:42.5]} 9...
Be7 {[%clk 0:04:46.7]} 10. O-O {[%clk 0:04:41.4]} 10... O-O {[%clk 0:04:45.4]}
11. Ne5 {[%clk 0:04:40.8]} 11... Nxe5 {[%clk 0:04:42.8]} 12. Bxe5 {[%clk
0:04:39.6]} 12... a6 {[%clk 0:04:36.9]} 13. h3 {[%clk 0:04:36.6]} 13... Bh5
{[%clk 0:04:35.2]} 14. Qc2 {[%clk 0:04:27.5]} 14... Bg6 {[%clk 0:04:30.5]} 15.
Bxg6 {[%clk 0:04:26]} 15... hxg6 {[%clk 0:04:30.4]} 16. Qd3 {[%clk 0:04:24.3]}
16... b5 {[%clk 0:04:27.8]} 17. a3 {[%clk 0:04:21.5]} 17... Nd7 {[%clk
0:04:25.8]} 18. Bg3 {[%clk 0:04:18.6]} 18... Qb7 {[%clk 0:04:24.8]} 19. Nf3
{[%clk 0:04:16.9]} 19... Bf6 {[%clk 0:04:21.8]} 20. Rfe1 {[%clk 0:04:13.9]}
20... Rac8 {[%clk 0:04:20]} 21. Ne5 {[%clk 0:04:10.8]} 21... Bxe5 {[%clk
0:04:18.4]} 22. Bxe5 {[%clk 0:04:09.4]} 22... a5 {[%clk 0:04:16.2]} 23. Rac1
{[%clk 0:04:03.4]} 23... b4 {[%clk 0:04:10.6]} 24. axb4 {[%clk 0:04:00.2]} 24...
axb4 {[%clk 0:04:10.5]} 25. Bd6 {[%clk 0:03:57.9]} 25... bxc3 {[%clk 0:04:05.5]}
26. Bxf8 {[%clk 0:03:53.6]} 26... cxb2 {[%clk 0:03:54.3]} 27. Rxc8 {[%clk
0:03:50.7]} 27... Qxc8 {[%clk 0:03:48.8]} 28. Ba3 {[%clk 0:03:42.7]} 28... Nb6
{[%clk 0:03:47.1]} 29. Bxb2 {[%clk 0:03:39.8]} 29... Nc4 {[%clk 0:03:46.1]} 30.
Rc1 {[%clk 0:03:36.8]} 30... Qa6 {[%clk 0:03:42.3]} 31. Bc3 {[%clk 0:03:30.4]}
31... Qa3 {[%clk 0:03:39.2]} 32. Ra1 {[%clk 0:03:25.9]} 32... Qb3 {[%clk
0:03:35.8]} 33. Rb1 {[%clk 0:03:14.7]} 33... Qa2 {[%clk 0:03:30.1]} 34. Ra1
{[%clk 0:03:10.5]} 34... Qb3 {[%clk 0:03:28.9]} 35. Ra8+ {[%clk 0:03:08.1]}
35... Kh7 {[%clk 0:03:27.5]} 36. Qg3 {[%clk 0:03:05.9]} 36... Qb1+ {[%clk
0:03:15.1]} 37. Kh2 {[%clk 0:03:03.8]} 37... Qe4 {[%clk 0:03:13.7]} 38. f3
{[%clk 0:02:47.7]} 38... Qf5 {[%clk 0:03:09.9]} 39. Qh4+ {[%clk 0:02:46.6]}
39... Qh5 {[%clk 0:03:09]} 40. Qxh5+ {[%clk 0:02:45.7]} 40... gxh5 {[%clk
0:03:07.8]} 41. Kg3 {[%clk 0:02:42.1]} 41... Kg6 {[%clk 0:03:05.5]} 42. Kf2
{[%clk 0:02:40.2]} 42... Kf6 {[%clk 0:03:03.5]} 43. Ra7 {[%clk 0:02:37]} 43...
g5 {[%clk 0:02:58.3]} 44. g4 {[%clk 0:02:35.3]} 44... hxg4 {[%clk 0:02:56.4]}
45. fxg4 {[%clk 0:02:33.5]} 45... Kg6 {[%clk 0:02:55.4]} 46. Ke2 {[%clk
0:02:30.3]} 46... Nd6 {[%clk 0:02:52.5]} 47. Bb4 {[%clk 0:02:20.6]} 47... Nb5
{[%clk 0:02:45.8]} 48. Rd7 {[%clk 0:02:10.7]} 48... Nxd4+ {[%clk 0:02:43.8]} 49.
Kd3 {[%clk 0:02:08.6]} 49... Nc6 {[%clk 0:02:41.4]} 50. Bd2 {[%clk 0:02:04.9]}
50... Ne5+ {[%clk 0:02:39.7]} 51. Kd4 {[%clk 0:02:02.1]} 51... Nxd7 {[%clk
0:02:39.6]} 52. Bb4 {[%clk 0:01:58.5]} 52... f6 {[%clk 0:02:38]} 53. Be7 {[%clk
0:01:56.3]} 53... Kf7 {[%clk 0:02:36.6]} 54. Bd6 {[%clk 0:01:55.1]} 54... Nb6
{[%clk 0:02:32.8]} 55. Kc5 {[%clk 0:01:51.9]} 55... Nc4 {[%clk 0:02:31.4]} 56.
Bg3 {[%clk 0:01:50]} 56... Nd2 {[%clk 0:02:26.1]} 57. h4 {[%clk 0:01:45.1]}
57... Ne4+ {[%clk 0:02:24.7]} 0-1

[Event "Live Chess"]
[Site "Chess.com"]
[Date "2024.06.01"]
[Round "-"]
[White "Bradfield133"]
[Black "mrsmarple1968"]
[Result "0-1"]
[WhiteElo "1922"]
[BlackElo "1765"]
[TimeControl "300"]
[EndTime "12:42:27 PDT"]
[Termination "mrsmarple1968 won on time"]

1. c4 {[%clk 0:04:58.1]} 1... e5 {[%clk 0:04:56.9]} 2. g3 {[%clk 0:04:56.8]}
2... c6 {[%clk 0:04:51.5]} 3. d4 {[%clk 0:04:54.4]} 3... exd4 {[%clk 0:04:43.2]}
4. Qxd4 {[%clk 0:04:53]} 4... Nf6 {[%clk 0:04:41.4]} 5. Nf3 {[%clk 0:04:49.3]}
5... d5 {[%clk 0:04:28.6]} 6. cxd5 {[%clk 0:04:45.7]} 6... Qxd5 {[%clk
0:04:23.1]} 7. Nc3 {[%clk 0:04:42.3]} 7... Qxd4 {[%clk 0:04:15.4]} 8. Nxd4
{[%clk 0:04:42.2]} 8... Bc5 {[%clk 0:04:10.6]} 9. Nb3 {[%clk 0:04:36.8]} 9...
Bb6 {[%clk 0:04:07.7]} 10. Bg2 {[%clk 0:04:33.9]} 10... Be6 {[%clk 0:03:58.9]}
11. O-O {[%clk 0:04:27.4]} 11... O-O {[%clk 0:03:52.4]} 12. Rd1 {[%clk
0:04:11.5]} 12... Bxb3 {[%clk 0:03:47.8]} 13. axb3 {[%clk 0:04:09.5]} 13... Nbd7
{[%clk 0:03:39.8]} 14. Bg5 {[%clk 0:04:01.7]} 14... h6 {[%clk 0:03:36.4]} 15.
Bf4 {[%clk 0:03:54.7]} 15... Nc5 {[%clk 0:03:26.9]} 16. b4 {[%clk 0:03:39.9]}
16... Ne6 {[%clk 0:03:20.8]} 17. Be5 {[%clk 0:03:26.6]} 17... Ng4 {[%clk
0:02:52]} 18. Bd6 {[%clk 0:03:22.9]} 18... Nxf2 {[%clk 0:02:40]} 19. Kf1 {[%clk
0:01:48.9]} 19... Nxd1 {[%clk 0:02:24.9]} 20. Rxd1 {[%clk 0:01:48.8]} 20... Rfe8
{[%clk 0:02:18.1]} 21. b5 {[%clk 0:01:38.8]} 21... Nd4 {[%clk 0:01:37.1]} 22.
bxc6 {[%clk 0:01:32.6]} 22... Nxc6 {[%clk 0:01:21.3]} 23. Nd5 {[%clk 0:01:27.3]}
23... Bd8 {[%clk 0:00:58.8]} 24. Nc7 {[%clk 0:01:05.4]} 24... Bf6 {[%clk
0:00:41.9]} 25. Nxa8 {[%clk 0:00:59.5]} 25... Rxa8 {[%clk 0:00:38.7]} 26. b4
{[%clk 0:00:54.1]} 26... a6 {[%clk 0:00:37]} 27. Rc1 {[%clk 0:00:44.7]} 27...
Re8 {[%clk 0:00:34.9]} 28. Bxc6 {[%clk 0:00:39.3]} 28... bxc6 {[%clk 0:00:33.8]}
29. Rxc6 {[%clk 0:00:38.1]} 29... Re6 {[%clk 0:00:30]} 30. Rc8+ {[%clk
0:00:32.9]} 30... Kh7 {[%clk 0:00:27.9]} 31. Bc5 {[%clk 0:00:27.3]} 31... Bc3
{[%clk 0:00:23.3]} 32. Ra8 {[%clk 0:00:23.5]} 32... Rc6 {[%clk 0:00:21.2]} 33.
Kf2 {[%clk 0:00:14.3]} 33... Rc7 {[%clk 0:00:20]} 34. Ke3 {[%clk 0:00:08.7]}
34... Rc6 {[%clk 0:00:19.3]} 35. Kd3 {[%clk 0:00:07.3]} 35... Bf6 {[%clk
0:00:18.4]} 36. Kc4 {[%clk 0:00:04.7]} 36... Rc7 {[%clk 0:00:17.6]} 37. Kd5
{[%clk 0:00:04.1]} 37... Rb7 {[%clk 0:00:11.7]} 38. Rxa6 {[%clk 0:00:03.1]}
38... Rb8 {[%clk 0:00:09.1]} 39. Rb6 {[%clk 0:00:02.6]} 39... Rc8 {[%clk
0:00:08.4]} 40. Rc6 {[%clk 0:00:01.7]} 40... Rd8+ {[%clk 0:00:08.2]} 41. Rd6
{[%clk 0:00:01]} 41... Re8 {[%clk 0:00:07.8]} 0-1

[Event "Live Chess"]
[Site "Chess.com"]
[Date "2024.06.01"]
[Round "-"]
[White "peteopeteo"]
[Black "Duke_of_Bebington"]
[Result "1/2-1/2"]
[WhiteElo "1604"]
[BlackElo "1584"]
[TimeControl "300"]
[EndTime "12:42:31 PDT"]
[Termination "Game drawn by agreement"]

1. e4 {[%clk 0:04:59.3]} 1... e5 {[%clk 0:04:58.6]} 2. Nf3 {[%clk 0:04:58.8]}
2... Nf6 {[%clk 0:04:57.8]} 3. Nc3 {[%clk 0:04:57.8]} 3... Nc6 {[%clk
0:04:56.1]} 4. Nxe5 {[%clk 0:04:56.6]} 4... Nxe5 {[%clk 0:04:53.1]} 5. d4 {[%clk
0:04:56.3]} 5... Ng6 {[%clk 0:04:52.1]} 6. e5 {[%clk 0:04:54.7]} 6... Ng8 {[%clk
0:04:49.5]} 7. Bc4 {[%clk 0:04:53.9]} 7... Qe7 {[%clk 0:04:10.4]} 8. f4 {[%clk
0:04:52.1]} 8... f6 {[%clk 0:04:00.4]} 9. Nd5 {[%clk 0:04:44.7]} 9... Qd8 {[%clk
0:03:54.3]} 10. O-O {[%clk 0:04:39.3]} 10... N6e7 {[%clk 0:03:39.5]} 11. exf6
{[%clk 0:04:34.3]} 11... Nxf6 {[%clk 0:03:28.7]} 12. Nxf6+ {[%clk 0:04:28.1]}
12... gxf6 {[%clk 0:03:26.8]} 13. Re1 {[%clk 0:04:21.4]} 13... d5 {[%clk
0:03:21.4]} 14. Qh5+ {[%clk 0:04:17]} 14... Kd7 {[%clk 0:03:16.1]} 15. Bxd5
{[%clk 0:04:02.8]} 15... Nxd5 {[%clk 0:03:12.4]} 16. Qxd5+ {[%clk 0:04:02.7]}
16... Bd6 {[%clk 0:03:10.6]} 17. Qe6+ {[%clk 0:03:48.7]} 17... Kc6 {[%clk
0:03:08.6]} 18. d5+ {[%clk 0:03:45.9]} 18... Kb6 {[%clk 0:03:03]} 19. Qe3+
{[%clk 0:03:41.1]} 19... c5 {[%clk 0:02:57.2]} 20. dxc6+ {[%clk 0:03:29.8]}
20... Kxc6 {[%clk 0:02:55.6]} 21. Qc3+ {[%clk 0:03:22.3]} 21... Bc5+ {[%clk
0:02:48]} 22. Kh1 {[%clk 0:03:18.6]} 22... Qd5 {[%clk 0:02:22.3]} 23. Be3 {[%clk
0:03:08.2]} 23... Rg8 {[%clk 0:02:11.2]} 24. Qxf6+ {[%clk 0:02:47.8]} 24... Bd6
{[%clk 0:02:03.9]} 25. Qc3+ {[%clk 0:02:39.5]} 25... Kd7 {[%clk 0:01:54.8]} 26.
Rg1 {[%clk 0:02:27.7]} 26... b6 {[%clk 0:01:43.3]} 27. Qb3 {[%clk 0:02:17.8]}
27... Qxb3 {[%clk 0:01:40.9]} 28. axb3 {[%clk 0:02:17.4]} 28... Bb7 {[%clk
0:01:38.1]} 29. Rad1 {[%clk 0:02:07.9]} 29... Ke6 {[%clk 0:01:31.2]} 30. Rde1
{[%clk 0:02:05.1]} 30... Kf5 {[%clk 0:01:29.6]} 31. Re2 {[%clk 0:01:58.6]} 31...
Rae8 {[%clk 0:01:22.8]} 32. Rge1 {[%clk 0:01:50.9]} 32... Bc5 {[%clk 0:01:15.2]}
33. Bxc5 {[%clk 0:01:41.1]} 33... Rxe2 {[%clk 0:01:12.9]} 34. Rxe2 {[%clk
0:01:41]} 34... bxc5 {[%clk 0:01:12.1]} 35. Kg1 {[%clk 0:01:35.8]} 35... Kxf4
{[%clk 0:01:07.6]} 36. g3+ {[%clk 0:01:34.5]} 36... Kf5 {[%clk 0:00:54.6]} 37.
Re7 {[%clk 0:01:32]} 37... Be4 {[%clk 0:00:47.3]} 38. c3 {[%clk 0:01:27.1]}
38... Rd8 {[%clk 0:00:39.4]} 39. g4+ {[%clk 0:01:13.3]} 39... Kxg4 {[%clk
0:00:37.4]} 40. Rxe4+ {[%clk 0:01:12.2]} 40... Kf3 {[%clk 0:00:36.4]} 41. Re1
{[%clk 0:00:55.9]} 41... Rd2 {[%clk 0:00:34.3]} 42. Rf1+ {[%clk 0:00:53.3]}
42... Kg4 {[%clk 0:00:31.2]} 43. Rb1 {[%clk 0:00:51.1]} 43... Kf3 {[%clk
0:00:30.5]} 44. Rf1+ {[%clk 0:00:50.1]} 44... Kg4 {[%clk 0:00:29.4]} 45. Rb1
{[%clk 0:00:49.3]} 45... Kf3 {[%clk 0:00:28.8]} 1/2-1/2

[Event "Live Chess"]
[Site "Chess.com"]
[Date "2024.06.01"]
[Round "-"]
[White "agamilewska"]
[Black "MellowAesthetic"]
[Result "0-1"]
[WhiteElo "1772"]
[BlackElo "2077"]
[TimeControl "300"]
[EndTime "12:42:52 PDT"]
[Termination "MellowAesthetic won by resignation"]

1. d4 {[%clk 0:04:58]} 1... Nf6 {[%clk 0:04:58.6]} 2. c4 {[%clk 0:04:53.9]} 2...
g6 {[%clk 0:04:57.6]} 3. Nc3 {[%clk 0:04:53.2]} 3... Bg7 {[%clk 0:04:56.6]} 4.
Nf3 {[%clk 0:04:52.8]} 4... O-O {[%clk 0:04:55.8]} 5. Bg5 {[%clk 0:04:52.3]}
5... h6 {[%clk 0:04:54.3]} 6. Bxf6 {[%clk 0:04:51.6]} 6... Bxf6 {[%clk
0:04:53.1]} 7. e4 {[%clk 0:04:51.5]} 7... d6 {[%clk 0:04:52]} 8. Be2 {[%clk
0:04:50.6]} 8... c5 {[%clk 0:04:51.1]} 9. dxc5 {[%clk 0:04:47.8]} 9... dxc5
{[%clk 0:04:48]} 10. O-O {[%clk 0:04:46.1]} 10... Nc6 {[%clk 0:04:30.6]} 11. Nd5
{[%clk 0:04:41.7]} 11... Bxb2 {[%clk 0:04:26.6]} 12. Rb1 {[%clk 0:04:40.5]}
12... Bg7 {[%clk 0:04:26.2]} 13. Qc2 {[%clk 0:04:28.8]} 13... b6 {[%clk
0:03:40.2]} 14. Rfd1 {[%clk 0:04:25.9]} 14... Nd4 {[%clk 0:03:39.4]} 15. Nxd4
{[%clk 0:04:15.2]} 15... cxd4 {[%clk 0:03:38.8]} 16. Bd3 {[%clk 0:04:06.9]}
16... Bb7 {[%clk 0:03:25.8]} 17. f4 {[%clk 0:04:06.2]} 17... e6 {[%clk
0:03:15.6]} 18. Nb4 {[%clk 0:03:57.4]} 18... a5 {[%clk 0:03:15.1]} 19. f5 {[%clk
0:03:39.5]} 19... axb4 {[%clk 0:03:04.2]} 20. fxg6 {[%clk 0:03:28.2]} 20... fxg6
{[%clk 0:03:03.5]} 21. Rxb4 {[%clk 0:03:26.1]} 21... e5 {[%clk 0:02:54.9]} 22.
Rxb6 {[%clk 0:03:22.2]} 22... Qxb6 {[%clk 0:02:53.1]} 23. Rb1 {[%clk 0:03:20.8]}
23... Qc7 {[%clk 0:02:47.1]} 24. c5 {[%clk 0:03:16.3]} 24... Ra3 {[%clk
0:02:36.7]} 25. Bc4+ {[%clk 0:03:14.8]} 25... Kh7 {[%clk 0:02:36.2]} 26. Bd5
{[%clk 0:03:06.9]} 26... Bxd5 {[%clk 0:02:30.6]} 27. exd5 {[%clk 0:03:06.8]}
27... Rc3 {[%clk 0:02:29.9]} 28. Qe4 {[%clk 0:02:02.7]} 28... Qxc5 {[%clk
0:02:26.5]} 0-1

[Event "Live Chess"]
[Site "Chess.com"]
[Date "2024.06.01"]
[Round "-"]
[White "Hoogleboogle"]
[Black "Vladyslava_A"]
[Result "0-1"]
[WhiteElo "1298"]
[BlackElo "1643"]
[TimeControl "300"]
[EndTime "12:43:13 PDT"]
[Termination "Vladyslava_A won by checkmate"]

1. d4 {[%clk 0:04:54.5]} 1... f5 {[%clk 0:04:58.6]} 2. c4 {[%clk 0:04:52.9]}
2... Nf6 {[%clk 0:04:55.8]} 3. Nc3 {[%clk 0:04:50.9]} 3... e6 {[%clk 0:04:55.1]}
4. Bg5 {[%clk 0:04:48.4]} 4... h6 {[%clk 0:04:50.9]} 5. Bxf6 {[%clk 0:04:42.4]}
5... Qxf6 {[%clk 0:04:49.3]} 6. Nf3 {[%clk 0:04:38.5]} 6... Nc6 {[%clk
0:04:44.8]} 7. e3 {[%clk 0:04:34.4]} 7... Bb4 {[%clk 0:04:42.8]} 8. a3 {[%clk
0:04:31.5]} 8... Bxc3+ {[%clk 0:04:38.9]} 9. bxc3 {[%clk 0:04:29.7]} 9... O-O
{[%clk 0:04:34.4]} 10. Be2 {[%clk 0:04:21.5]} 10... b6 {[%clk 0:04:33.2]} 11. h4
{[%clk 0:04:11.9]} 11... Bb7 {[%clk 0:04:29.8]} 12. Rh3 {[%clk 0:04:04.9]} 12...
f4 {[%clk 0:04:19.2]} 13. e4 {[%clk 0:03:54.6]} 13... Qg6 {[%clk 0:04:14.3]} 14.
Kf1 {[%clk 0:03:50.1]} 14... Ne7 {[%clk 0:04:04.6]} 15. Ne5 {[%clk 0:03:40.4]}
15... Qe8 {[%clk 0:03:50.4]} 16. Bf3 {[%clk 0:03:36.8]} 16... d6 {[%clk
0:03:37.2]} 17. Nd3 {[%clk 0:03:24.5]} 17... Qg6 {[%clk 0:03:21.7]} 18. g3
{[%clk 0:03:19.7]} 18... Bxe4 {[%clk 0:03:14.6]} 19. Nxf4 {[%clk 0:03:11.6]}
19... Rxf4 {[%clk 0:03:01.1]} 20. gxf4 {[%clk 0:03:03.6]} 20... Bd3+ {[%clk
0:02:58.9]} 21. Be2 {[%clk 0:02:48.6]} 21... Be4 {[%clk 0:02:49.8]} 22. Rg3
{[%clk 0:02:46.5]} 22... Qf6 {[%clk 0:02:48.4]} 23. Qd2 {[%clk 0:02:38.5]} 23...
Qxh4 {[%clk 0:02:39.3]} 24. d5 {[%clk 0:02:27.9]} 24... Qh1+ {[%clk 0:02:34.9]}
25. Rg1 {[%clk 0:02:25.1]} 25... Bg2+ {[%clk 0:02:33.6]} 26. Ke1 {[%clk
0:02:11.9]} 26... Qxg1+ {[%clk 0:02:31.1]} 27. Bf1 {[%clk 0:02:10.1]} 27...
Qxf1# {[%clk 0:02:30]} 0-1